fUSD/lending_fUSD_20260121
["ID","MTS","AMOUNT","RATE_DAILY","PERIOD"]
[402946785,1769008239619,-500.0,0.00017116,2]
[402946786,1769008239628,-500.0,0.00017116,2]
[402946787,1769008239637,-500.0,0.00017116,2]
[402946788,1769008239647,-500.0,0.00017116,2]
[402946789,1769008239657,-500.0,0.00017116,2]
[402946790,1769008239666,-500.0,0.00017116,2]
[402946791,1769008239676,-500.0,0.00017116,2]
[402946792,1769008239686,-500.0,0.00017116,2]
[402946793,1769008239695,-500.0,0.00017116,2]
[402946794,1769008239704,-500.0,0.00017116,2]
[402946795,1769008239714,-500.0,0.00017116,2]
[402946796,1769008239723,-500.0,0.00017116,2]
[402946797,1769008239733,-500.0,0.00017116,2]
[402946798,1769008239742,-500.0,0.00017116,2]
[402946799,1769008239752,-500.0,0.00017116,2]
[402946800,1769008239761,-500.0,0.00017116,2]
[402946801,1769008239770,-500.0,0.00017116,2]
[402946802,1769008239782,-500.0,0.00017116,2]
[402946803,1769008239792,-500.0,0.00017116,2]
[402946804,1769008239801,-500.0,0.00017116,2]
[402946805,1769008239811,-500.0,0.00017116,2]
[402946806,1769008239821,-500.0,0.00017116,2]
[402946807,1769008239831,-500.0,0.00017116,2]
[402946808,1769008239841,-500.0,0.00017116,2]
[402946809,1769008239851,-500.0,0.00017116,2]
[402946827,1769008240084,-303.63832311,0.00017116,2]
[402946829,1769008240095,-500.0,0.00017116,2]
[402946831,1769008240105,-500.0,0.00017116,2]
[402946833,1769008240115,-500.0,0.00017116,2]
[402946835,1769008240125,-500.0,0.00017116,2]
[402946837,1769008240134,-500.0,0.00017116,2]
[402946839,1769008240144,-500.0,0.00017116,2]
[402946841,1769008240154,-609.79429139,0.00017116,2]
[402946843,1769008240164,-500.0,0.00017116,2]
[402946845,1769008240173,-500.0,0.00017116,2]
[402946847,1769008240183,-500.0,0.00017116,2]
[402946849,1769008240193,-500.0,0.00017116,2]
[402946851,1769008240201,-500.0,0.00017116,2]
[402946853,1769008240210,-500.0,0.00017116,2]
[402946855,1769008240221,-500.0,0.00017116,2]
[402946857,1769008240233,-500.0,0.00017116,2]
[402946858,1769008240242,-500.0,0.00017116,2]
[402946860,1769008240251,-500.0,0.00017116,2]
[402946861,1769008240262,-500.0,0.00017116,2]
[402946863,1769008240272,-500.0,0.00017116,2]
[402946864,1769008240282,-500.0,0.00017116,2]
[402946865,1769008240292,-500.0,0.00017116,2]
[402946866,1769008240303,-500.0,0.00017116,2]
[402946867,1769008240312,-500.0,0.00017116,2]
[402946868,1769008240323,-500.0,0.00017116,2]
[402946869,1769008240332,-500.0,0.00017116,2]
[402946870,1769008240341,-500.0,0.00017116,2]
[402946871,1769008240350,-500.0,0.00017116,2]
[402946872,1769008240360,-500.0,0.00017116,2]
[402946873,1769008240369,-500.0,0.00017116,2]
[402946874,1769008240378,-500.0,0.00017116,2]
[402946875,1769008240387,-400.40425812,0.00017116,2]
[402946876,1769008240396,-500.0,0.00017116,2]
[402946877,1769008240406,-500.0,0.00017116,2]
[402946878,1769008240416,-500.0,0.00017116,2]
[402946879,1769008240425,-500.0,0.00017116,2]
[402946880,1769008240434,-500.0,0.00017116,2]
[402946881,1769008240443,-500.0,0.00017116,2]
[402946882,1769008240453,-500.0,0.00017116,2]
[402946883,1769008240463,-500.0,0.00017116,2]
[402946884,1769008240472,-500.0,0.00017116,2]
[402946885,1769008240481,-500.0,0.00017116,2]
[402946886,1769008240493,-500.0,0.00017116,2]
[402946887,1769008240502,-500.0,0.00017116,2]
[402946888,1769008240512,-650.0,0.00017116,2]
[402946889,1769008240521,-500.0,0.00017118,2]
[402946890,1769008240531,-500.0,0.00017118,2]
[402946891,1769008240540,-500.0,0.00017118,2]
[402946892,1769008240549,-500.0,0.00017118,2]
[402946893,1769008240559,-500.0,0.00017118,2]
[402946894,1769008240571,-500.0,0.00017118,2]
[402946895,1769008240581,-150.0,0.00017118,2]
[402946896,1769008240590,-628.0,0.00017118,2]
[402946897,1769008240600,-500.0,0.00017158,2]
[402946898,1769008240610,-500.0,0.00017158,2]
[402946899,1769008240620,-500.0,0.00017158,2]
[402946900,1769008240629,-150.0,0.00017158,2]
[402946901,1769008240639,-500.0,0.00017158,2]
[402946902,1769008240648,-221.17629805,0.00017158,2]
[402946903,1769008240658,-356.93,0.00017158,2]
[402946904,1769008240667,-500.0,0.0001717,2]
[402946905,1769008240677,-500.0,0.00017172,2]
[402946906,1769008240687,-500.0,0.00017173,2]
[402946907,1769008240697,-500.0,0.00017173,2]
[402946908,1769008240706,-605.56754048,0.00017173,2]
[402946909,1769008240715,-500.0,0.00017173,2]
[402946910,1769008240725,-500.0,0.00017173,2]
[402946911,1769008240734,-500.0,0.00017173,2]
[402946912,1769008240743,-500.0,0.00017173,2]
[402946913,1769008240752,-500.0,0.00017173,2]
[402946914,1769008240762,-500.0,0.00017173,2]
[402946915,1769008240771,-500.0,0.00017173,2]
[402946916,1769008240781,-500.0,0.00017173,2]
[402946917,1769008240791,-500.0,0.00017173,2]
[402946918,1769008240800,-500.0,0.00017173,2]
[402946919,1769008240809,-500.0,0.00017173,2]
[402946920,1769008240820,-500.0,0.00017173,2]
[402946921,1769008240830,-500.0,0.00017173,2]
[402946922,1769008240839,-502.57997666,0.00017173,2]
[402946923,1769008240848,-166.15547505,0.00017173,2]
[402946924,1769008240857,-500.0,0.00017173,2]
[402946925,1769008240867,-500.0,0.00017173,2]
[402946926,1769008240876,-500.0,0.00017173,2]
[402946927,1769008240885,-500.0,0.00017173,2]
[402946928,1769008240895,-500.0,0.00017173,2]
[402946929,1769008240904,-500.0,0.00017173,2]
[402946930,1769008240914,-500.0,0.00017173,2]
[402946931,1769008240923,-500.36019469,0.00017173,2]
[402946932,1769008240935,-500.0,0.00017173,2]
[402946933,1769008240944,-500.24354149,0.00017173,2]
[402946934,1769008240955,-500.54717654,0.00017173,2]
[402946935,1769008240964,-169.41492416,0.00017173,2]
[402946936,1769008240974,-162.82594348,0.00017173,2]
[402946937,1769008240984,-500.44081703,0.00017173,2]
[402946938,1769008240993,-217.33264691,0.00017173,2]
[402946939,1769008241002,-166.57282596,0.00017173,2]
[402946940,1769008241011,-500.0,0.00017173,2]
[402946941,1769008241021,-500.0,0.00017173,2]
[402946942,1769008241031,-500.0,0.00017173,2]
[402946943,1769008241041,-500.0,0.00017173,2]
[402946944,1769008241050,-500.0,0.00017173,2]
[402946945,1769008241060,-500.0,0.00017173,2]
[402946946,1769008241070,-500.0,0.00017173,2]
[402946947,1769008241079,-500.0,0.00017173,2]
[402946948,1769008241089,-157.1948729,0.00017173,2]
[402946949,1769008241098,-628.0,0.00017173,2]
[402946950,1769008241107,-872.32,0.00017175,2]
[402946951,1769008241117,-500.0,0.00017212,2]
[402946952,1769008241126,-500.0,0.00017212,2]
[402946953,1769008241135,-500.0,0.00017212,2]
[402946954,1769008241145,-150.0,0.00017212,2]
[402946955,1769008241154,-500.0,0.00017212,2]
[402946956,1769008241164,-500.0,0.00017228,2]
[402946957,1769008241173,-500.0,0.00017228,2]
[402946958,1769008241182,-500.0,0.00017228,2]
[402946959,1769008241194,-500.0,0.00017228,2]
[402946960,1769008241204,-500.0,0.00017228,2]
[402946961,1769008241215,-379.09047259,0.00017228,2]
[402946962,1769008241226,-628.0,0.00017228,2]
[402946963,1769008241237,-10018.25942168,0.00017256,2]
[402946964,1769008241246,-1000.0,0.00017265,2]
[402946965,1769008241257,-500.0,0.00017267,2]
[402946966,1769008241266,-500.0,0.00017267,2]
[402946967,1769008241275,-157.15309479,0.00017267,2]
[402946968,1769008241285,-500.0,0.00017267,2]
[402946969,1769008241295,-500.0,0.00017273,2]
[402946970,1769008241304,-500.0,0.00017273,2]
[402946971,1769008241314,-257.99612183,0.00017273,2]
[402946972,1769008241324,-500.0,0.00017273,2]
[402946973,1769008241334,-500.0,0.00017273,2]
[402946974,1769008241343,-550.70733566,0.00017273,2]
[402946975,1769008241352,-159.96427776,0.00017273,2]
[402946976,1769008241361,-500.0,0.00017273,2]
[402946977,1769008241370,-500.12560695,0.00017273,2]
[402946978,1769008241380,-500.0,0.00017273,2]
[402946979,1769008241390,-500.0,0.00017273,2]
[402946980,1769008241399,-500.0,0.00017273,2]
[402946981,1769008241408,-500.0,0.00017273,2]
[402946982,1769008241418,-500.0,0.00017273,2]
[402946983,1769008241427,-500.0,0.00017273,2]
[402946984,1769008241437,-500.15189466,0.00017273,2]
[402946985,1769008241446,-500.0,0.00017273,2]
[402946986,1769008241456,-500.0,0.00017273,2]
[402946987,1769008241466,-500.0,0.00017283,2]
[402946988,1769008241476,-500.0,0.00017283,2]
[402946989,1769008241485,-500.0,0.00017283,2]
[402946990,1769008241494,-500.0,0.00017283,2]
[402946991,1769008241503,-500.0,0.00017283,2]
[402946992,1769008241513,-628.0,0.00017283,2]
[402946993,1769008241522,-500.0,0.00017322,2]
[402946994,1769008241531,-500.0,0.00017322,2]
[402946995,1769008241540,-481.84582328,0.00017322,2]
[402946996,1769008241550,-450.62704032,0.00017338,2]
[402946997,1769008241559,-500.0,0.00017338,2]
[402946998,1769008241570,-388.59735373,0.00017338,2]
[402946999,1769008241580,-500.0,0.00017338,2]
[402947000,1769008241590,-500.0,0.00017338,2]
[402947001,1769008241603,-628.0,0.00017338,2]
[402947002,1769008241613,-500.0,0.00017377,2]
[402947003,1769008241623,-500.0,0.00017377,2]
[402947004,1769008241633,-1670.33862751,0.00017384,2]
[402947005,1769008241643,-500.0,0.00017392,2]
[402947006,1769008241653,-209.64382423,0.00017392,2]
[402947007,1769008241663,-500.0,0.00017392,2]
[402947008,1769008241672,-628.0,0.00017392,2]
[402947009,1769008241683,-11171.0,0.000174,2]
[402947010,1769008241692,-305.76176181,0.00017432,2]
[402947011,1769008241701,-500.0,0.00017432,2]
[402947012,1769008241710,-500.0,0.00017447,2]
[402947013,1769008241720,-500.0,0.00017447,2]
[402947014,1769008241729,-628.0,0.00017447,2]
[402947015,1769008241739,-872.32,0.00017449,2]
[402947016,1769008241748,-500.0,0.00017486,2]
[402947017,1769008241758,-200.0,0.00017497,2]
[402947018,1769008241768,-500.0,0.000175,2]
[402947019,1769008241778,-500.0,0.00017502,2]
[402947020,1769008241787,-500.0,0.00017502,2]
[402947021,1769008241797,-628.0,0.00017502,2]
[402947022,1769008241806,-2605.0,0.00017525,2]
[402947023,1769008241816,-200.0,0.00017534,2]
[402947024,1769008241827,-500.0,0.00017534,2]
[402947025,1769008241836,-500.0,0.00017534,2]
[402947026,1769008241846,-311.25613076,0.00017541,2]
[402947027,1769008241855,-500.0,0.00017557,2]
[402947028,1769008241864,-500.0,0.00017557,2]
[402947029,1769008241873,-628.0,0.00017557,2]
[402947030,1769008241883,-500.0,0.00017589,2]
[402947031,1769008241892,-500.0,0.00017589,2]
[402947032,1769008241901,-553.64373807,0.00017592,2]
[402947033,1769008241910,-201.93286099,0.00017592,2]
[402947034,1769008241919,-181.08010149,0.00017592,2]
[402947035,1769008241928,-1511.0,0.000176,2]
[402947036,1769008241937,-500.0,0.00017612,2]
[402947037,1769008241946,-500.0,0.00017612,2]
[402947038,1769008241955,-628.0,0.00017612,2]
[402947039,1769008241965,-5144.60619171,0.0001764,2]
[402947040,1769008241974,-500.0,0.00017644,2]
[402947041,1769008241984,-500.0,0.00017644,2]
[402947042,1769008241993,-216.88872649,0.00017655,2]
[402947043,1769008242002,-572.37278072,0.00017655,2]
[402947044,1769008242011,-1009.7334307,0.00017655,2]
[402947045,1769008242020,-500.0,0.00017666,2]
[402947046,1769008242030,-558.26785417,0.00017666,2]
[402947047,1769008242039,-628.0,0.00017666,2]
[402947048,1769008242048,-1000.0,0.00017667,2]
[402947049,1769008242057,-261.12,0.0001768,2]
[402947050,1769008242066,-159.52,0.00017681,2]
[402947051,1769008242076,-1000.0,0.00017698,2]
[402947052,1769008242086,-500.0,0.00017698,2]
[402947053,1769008242096,-500.0,0.00017698,2]
[402947054,1769008242106,-1000.0,0.000177,2]
[402947055,1769008242116,-1000.0,0.000177,2]
[402947056,1769008242126,-1000.0,0.000177,2]
[402947057,1769008242135,-1000.0,0.000177,2]
[402947058,1769008242145,-1000.0,0.000177,2]
[402947059,1769008242154,-1000.0,0.00017702,2]
[402947060,1769008242163,-1000.0,0.00017703,2]
[402947061,1769008242173,-468.94,0.00017709,2]
[402947062,1769008242182,-500.0,0.00017718,2]
[402947063,1769008242191,-1047.06319096,0.00017719,5]
[402947064,1769008242200,-500.0,0.0001772,2]
[402947065,1769008242210,-500.0,0.0001772,2]
[402947066,1769008242219,-1000.0,0.00017721,2]
[402947067,1769008242231,-1006.42593625,0.00017721,2]
[402947068,1769008242241,-1000.0,0.00017721,2]
[402947069,1769008242251,-1004.22603028,0.00017721,2]
[402947070,1769008242260,-501.85923341,0.00017721,2]
[402947071,1769008242270,-1000.0,0.00017721,2]
[402947072,1769008242279,-1000.0,0.00017721,2]
[402947074,1769008242289,-1000.0,0.00017721,2]
[402947075,1769008242300,-906.24694652,0.00017721,2]
[402947077,1769008242310,-1000.0,0.00017721,2]
[402947079,1769008242319,-1000.0,0.00017721,2]
[402947081,1769008242329,-500.58756359,0.00017721,2]
[402947083,1769008242338,-200.78433745,0.00017721,2]
[402947084,1769008242347,-500.47917453,0.00017721,2]
[402947085,1769008242356,-500.0,0.00017721,2]
[402947086,1769008242365,-1000.0,0.00017721,2]
[402947087,1769008242374,-500.67790697,0.00017721,2]
[402947088,1769008242383,-1000.0,0.00017721,2]
[402947089,1769008242393,-1000.0,0.00017721,2]
[402947090,1769008242402,-500.50663341,0.00017721,2]
[402947091,1769008242411,-837.2193742,0.00017721,2]
[402947092,1769008242420,-1000.0,0.00017721,2]
[402947093,1769008242428,-1000.0,0.00017721,2]
[402947094,1769008242438,-1000.0,0.00017721,2]
[402947095,1769008242448,-2574.495,0.00017721,2]
[402947096,1769008242457,-332.094,0.00017721,2]
[402947097,1769008242467,-1000.0,0.00017721,2]
[402947098,1769008242477,-263.38461163,0.00017721,2]
[402947099,1769008242486,-628.0,0.00017721,2]
[402947100,1769008242495,-1000.0,0.00017723,2]
[402947101,1769008242504,-872.32,0.00017723,2]
[402947103,1769008242513,-274.04697621,0.00017726,2]
[402947105,1769008242522,-1000.0,0.00017732,2]
[402947107,1769008242532,-1000.0,0.00017734,2]
[402947109,1769008242542,-1000.0,0.00017737,2]
[402947110,1769008242553,-1000.0,0.00017738,2]
[402947111,1769008242563,-1000.0,0.00017743,2]
[402947112,1769008242574,-795.95763591,0.00017751,2]
[402947113,1769008242584,-1000.0,0.00017753,2]
[402947114,1769008242594,-500.0,0.00017753,2]
[402947115,1769008242603,-500.0,0.00017753,2]
[402947116,1769008242612,-265.81,0.00017754,2]
[402947117,1769008242622,-1000.0,0.00017756,2]
[402947118,1769008242631,-679.29564048,0.00017768,2]
[402947119,1769008242640,-1000.0,0.00017768,2]
[402947120,1769008242651,-204.04236409,0.00017774,2]
[402947121,1769008242660,-628.0,0.00017776,2]
[402947122,1769008242669,-1000.0,0.00017781,2]
[402947123,1769008242679,-150.0,0.00017783,2]
[402947124,1769008242688,-1000.0,0.0001779,2]
[402947125,1769008242698,-247.18943063,0.0001779,2]
[402947126,1769008242707,-165.23,0.0001779,2]
[402947127,1769008242717,-1000.0,0.00017796,2]
[402947128,1769008242726,-1000.0,0.000178,2]
[402947129,1769008242736,-8743.53821594,0.000178,2]
[402947130,1769008242745,-1000.0,0.00017806,2]
[402947131,1769008242755,-500.0,0.00017808,2]
[402947132,1769008242765,-500.0,0.00017808,2]
[402947133,1769008242774,-150.0,0.00017808,2]
[402947134,1769008242784,-500.0,0.00017808,2]
[402947135,1769008242793,-1000.0,0.00017815,2]
[402947136,1769008242803,-1000.0,0.00017818,2]
[402947137,1769008242812,-1000.0,0.0001782,2]
[402947138,1769008242823,-190.85599,0.0001782,2]
[402947139,1769008242832,-190.85599,0.0001782,2]
[402947140,1769008242842,-190.85599,0.0001782,2]
[402947141,1769008242851,-190.856,0.0001782,2]
[402947142,1769008242861,-190.85599,0.0001782,2]
[402947143,1769008242870,-190.85599,0.0001782,2]
[402947144,1769008242881,-1202.74527863,0.0001782,2]
[402947145,1769008242890,-232.11146402,0.0001782,6]
[402947146,1769008242899,-500.0,0.00017821,2]
[402947147,1769008242908,-231.45242292,0.00017821,2]
[402947148,1769008242918,-500.0,0.00017821,2]
[402947149,1769008242927,-500.0,0.00017821,2]
[402947150,1769008242936,-586.66357325,0.00017821,2]
[402947151,1769008242946,-1000.0,0.00017821,2]
[402947152,1769008242955,-1000.0,0.00017821,2]
[402947153,1769008242964,-159.74,0.00017822,2]
[402947154,1769008242974,-150.00335007,0.00017826,2]
[402947155,1769008242984,-1000.0,0.00017828,2]
[402947156,1769008242994,-629.45617124,0.00017829,2]
[402947157,1769008243004,-1047.06319098,0.00017829,5]
[402947159,1769008243013,-545.74415025,0.00017829,2]
[402947160,1769008243022,-500.0,0.00017829,2]
[402947161,1769008243032,-500.0,0.00017829,2]
[402947162,1769008243041,-500.0,0.00017829,2]
[402947163,1769008243050,-500.0,0.00017829,2]
[402947164,1769008243059,-500.0,0.00017829,2]
[402947165,1769008243070,-85377.82099602,0.0001783,2]
[402947166,1769008243079,-41631.43220442,0.0001783,2]
[402947167,1769008243088,-628.0,0.00017831,2]
[402947168,1769008243098,-1000.0,0.00017835,2]
[402947169,1769008243108,-1000.0,0.00017836,2]
[402947170,1769008243117,-1000.0,0.00017838,2]
[402947171,1769008243126,-150.0,0.00017841,2]
[402947174,1769008243135,-624.9530238,0.00017842,2]
[402947175,1769008243144,-1000.0,0.00017846,2]
[402947176,1769008243153,-1000.0,0.00017852,2]
[402947177,1769008243162,-200.0,0.00017855,2]
[402947178,1769008243171,-200.0,0.00017856,2]
[402947179,1769008243181,-200.0,0.00017856,2]
[402947180,1769008243190,-1000.0,0.00017861,2]
[402947181,1769008243200,-500.0,0.00017863,2]
[402947182,1769008243209,-500.0,0.00017863,2]
[402947183,1769008243220,-150.0,0.00017863,2]
[402947184,1769008243231,-500.0,0.00017863,2]
[402947185,1769008243241,-150.0,0.00017867,2]
[402947186,1769008243251,-795.95763591,0.00017867,2]
[402947187,1769008243260,-150.0,0.00017868,2]
[402947188,1769008243270,-1000.0,0.00017871,2]
[402947189,1769008243280,-159.74,0.00017871,2]
[402947190,1769008243289,-266.24,0.00017875,2]
[402947191,1769008243299,-1000.0,0.00017883,2]
[402947192,1769008243309,-628.0,0.00017886,2]
[402947193,1769008243320,-1000.0,0.00017888,2]
[402947194,1769008243329,-1000.0,0.00017891,2]
[402947195,1769008243339,-1000.0,0.00017897,2]
[402947196,1769008243348,-500.0,0.00017899,2]
[402947197,1769008243359,-1670.33862751,0.00017899,2]
[402947198,1769008243368,-150.0,0.00017899,2]
[402947199,1769008243378,-253.13099999,0.000179,3]
[402947200,1769008243387,-1000.0,0.000179,2]
[402947201,1769008243396,-177.51312027,0.000179,2]
[402947202,1769008243406,-358.71357987,0.000179,2]
[402947203,1769008243415,-711.2611325,0.000179,2]
[402947204,1769008243425,-3485.75274624,0.000179,2]
[402947205,1769008243434,-195.92069658,0.000179,3]
[402947206,1769008243443,-2840.42962747,0.000179,2]
[402947207,1769008243453,-204.04236409,0.00017901,2]
[402947208,1769008243462,-1000.0,0.0001791,2]
[402947209,1769008243471,-1000.0,0.00017912,2]
[402947210,1769008243481,-252.00080963,0.00017918,2]
[402947211,1769008243490,-500.0,0.00017918,2]
[402947212,1769008243500,-200.49238854,0.00017918,2]
[402947213,1769008243509,-500.0,0.00017918,2]
[402947214,1769008243518,-1000.0,0.00017919,2]
[402947215,1769008243528,-420.0,0.00017925,2]
[402947216,1769008243537,-1000.0,0.00017937,2]
[402947217,1769008243546,-628.0,0.0001794,2]
[402947218,1769008243555,-1000.0,0.0001796,2]
[402947219,1769008243564,-500.0,0.0001797,2]
[402947220,1769008243577,-1000.0,0.0001797,2]
[402947221,1769008243586,-500.0,0.0001797,2]
[402947222,1769008243596,-1000.0,0.0001797,2]
[402947223,1769008243606,-694.631145,0.0001797,2]
[402947224,1769008243616,-1000.0,0.0001797,2]
[402947225,1769008243627,-1321.57411122,0.0001797,2]
[402947226,1769008243638,-1000.0,0.00017971,2]
[402947227,1769008243647,-500.0,0.00017972,2]
[402947229,1769008243844,-500.0,0.00017972,2]
[402947230,1769008243855,-30553.0,0.00017973,2]
[402947231,1769008243864,-15055.0,0.00017973,2]
[402947232,1769008243874,-382.0,0.00017973,2]
[402947233,1769008243883,-2605.0,0.00017982,2]
[402947234,1769008243892,-500.0,0.00017982,2]
[402947235,1769008243901,-3966.6148062,0.00017989,2]
[402947236,1769008243911,-9610.540888,0.00017989,2]
[402947237,1769008243920,-1202.74527863,0.0001799,2]
[402947238,1769008243929,-150.0,0.00017993,2]
[402947239,1769008243938,-628.0,0.00017995,2]
[402947240,1769008243947,-872.32,0.00017997,2]
[402947241,1769008243956,-151.0,0.00017997,2]
[402947242,1769008243966,-150.0,0.00017999,2]
[402947243,1769008243975,-252.48903335,0.00017999,2]
[402947244,1769008243985,-575.71488184,0.00017999,2]
[402947245,1769008243995,-500.0,0.00017999,2]
[402947246,1769008244004,-407.06529781,0.00017999,2]
[402947247,1769008244014,-500.0,0.00017999,2]
[402947248,1769008244024,-500.0,0.00017999,2]
[402947249,1769008244034,-585.5583357,0.00017999,2]
[402947250,1769008244043,-500.0,0.00017999,2]
[402947251,1769008244052,-500.0,0.00017999,2]
[402947252,1769008244062,-500.0,0.00017999,2]
[402947253,1769008244073,-163.26702471,0.00017999,2]
[402947254,1769008244083,-500.0,0.00017999,2]
[402947255,1769008244092,-500.0,0.00017999,2]
[402947256,1769008244101,-500.0,0.00017999,2]
[402947257,1769008244110,-500.0,0.00017999,2]
[402947258,1769008244119,-500.0,0.00017999,2]
[402947259,1769008244128,-500.0,0.00017999,2]
[402947260,1769008244137,-500.0,0.00017999,2]
[402947261,1769008244146,-500.0,0.00017999,2]
[402947262,1769008244155,-500.0,0.00017999,2]
[402947263,1769008244164,-500.0,0.00017999,2]
[402947264,1769008244174,-500.0,0.00017999,2]
[402947265,1769008244183,-500.0,0.00017999,2]
[402947266,1769008244193,-500.0,0.00017999,2]
[402947267,1769008244201,-500.0,0.00017999,2]
[402947268,1769008244211,-500.0,0.00017999,2]
[402947269,1769008244221,-237.2450797,0.00017999,2]
[402947270,1769008244233,-502.32638867,0.00017999,2]
[402947271,1769008244243,-500.0,0.00017999,2]
[402947272,1769008244253,-500.0,0.00017999,2]
[402947273,1769008244262,-500.0,0.00017999,2]
[402947274,1769008244272,-500.0,0.00017999,2]
[402947275,1769008244282,-178.19923715,0.00017999,2]
[402947276,1769008244291,-296.83777721,0.00017999,2]
[402947277,1769008244302,-393.39757277,0.00017999,2]
[402947278,1769008244312,-207.78895089,0.00017999,2]
[402947279,1769008244322,-455.20675986,0.00017999,2]
[402947280,1769008244332,-450.0,0.00017999,2]
[402947281,1769008244341,-500.0,0.00017999,2]
[402947282,1769008244350,-500.0,0.00017999,2]
[402947283,1769008244359,-500.0,0.00017999,2]
[402947284,1769008244368,-390.05586151,0.00017999,2]
[402947285,1769008244377,-500.0,0.00017999,2]
[402947286,1769008244385,-426.81234527,0.00017999,2]
[402947287,1769008244396,-195.08861137,0.00017999,2]
[402947288,1769008244405,-168.59895976,0.00017999,2]
[402947289,1769008244414,-2020545.50704169,0.00018,2]
[402947290,1769008244423,-600.0,0.00018,2]
[402947291,1769008244431,-150.0,0.00018,2]
[402947292,1769008244441,-150.0,0.00018,2]
[402947293,1769008244449,-166.29296141,0.00018,2]
[402947294,1769008244458,-500.0,0.00018,2]
[402947295,1769008244467,-200.0,0.00018,2]
[402947296,1769008244476,-244948.1825894,0.00018,2]
[402947297,1769008244486,-19583.3035265,0.00018,2]
[402947298,1769008244495,-151.0,0.00018,2]
[402947299,1769008244504,-151.0,0.00018,2]
[402947300,1769008244513,-151.0,0.00018,2]
[402947301,1769008244522,-151.0,0.00018,2]
[402947302,1769008244532,-151.0,0.00018,2]
[402947303,1769008244541,-151.0,0.00018,2]
[402947304,1769008244550,-151.0,0.00018,2]
[402947305,1769008244559,-151.0,0.00018,2]
[402947306,1769008244571,-200.0,0.00018,2]
[402947307,1769008244580,-265.81,0.00018011,2]
[402947308,1769008244589,-1680.0,0.00018015,2]
[402947309,1769008244598,-855.0,0.0001802,2]
[402947310,1769008244607,-500.0,0.00018027,2]
[402947311,1769008244616,-500.0,0.00018027,2]
[402947312,1769008244625,-195.0,0.00018032,2]
[402947313,1769008244635,-1332.0,0.00018033,2]
[402947314,1769008244644,-1407.0,0.00018038,2]
[402947315,1769008244654,-1268.0,0.00018038,2]
[402947316,1769008244663,-915.0,0.00018038,2]
[402947317,1769008244671,-1203.0,0.00018038,2]
[402947318,1769008244680,-566.0,0.00018038,2]
[402947319,1769008244689,-4827.0,0.00018038,2]
[402947320,1769008244699,-5141.58765933,0.00018043,2]
[402947321,1769008244708,-250.0,0.00018043,2]
[402947322,1769008244718,-628.0,0.0001805,2]
[402947323,1769008244728,-309.84593088,0.0001806,2]
[402947324,1769008244737,-193.0,0.0001806,2]
[402947325,1769008244748,-300.0,0.0001806,2]
[402947326,1769008244757,-792.36542617,0.0001806,2]
[402947327,1769008244766,-600.0,0.0001806,2]
[402947328,1769008244775,-855.0,0.00018068,2]
[402947329,1769008244785,-2500.0,0.00018069,2]
[402947330,1769008244794,-300.0,0.00018069,2]
[402947331,1769008244803,-300.0,0.00018069,2]